Workbook

Sheet break-even
B1: variable | C1: value | D1: description | F1: volume | G1: cost | H1: revenue | J1: element | K1: from | L1: to
B2: cf= | C2: 10000 | D2: fixed cost per month | F2: 0 | G2: =$C$2+$C$3*F2 -> 10000 | H2: =$C$4*F2 -> 0 | J2: volume | K2: 0 | L2: 1200
B3: cv= | C3: 8 | D3: variable cost per unit | F3: 1200 | G3: =$C$2+$C$3*F3 -> 19600 | H3: =$C$4*F3 -> 27600 | J3: cost | K3: =$C$2+$C$3*K2 -> 10000 | L3: =$C$2+$C$3*L2 -> 19600
B4: p= | C4: 23 | D4: price per unit | J4: revenue | K4: =$C$4*K2 -> 0 | L4: =$C$4*L2 -> 27600
B5: v= | C5: 600 | D5: current volume
B7: vb= | C7: =C2/(C4-C3) -> 666.6666667 | D7: break-even point

Sheet break-even-ana
B1: variable | C1: value | D1: description | F1: volume | G1: cost | H1: revenue
B2: cf= | C2: 10000 | D2: fixed cost per month | F2: 0 | G2: =$C$2+$C$3*F2 -> 10000 | H2: =$C$4*F2 -> 0
B3: cv= | C3: 8 | D3: variable cost per unit | F3: 1200 | G3: =$C$2+$C$3*F3 -> 19600 | H3: =$C$4*F3 -> 27600
B4: p= | C4: 23 | D4: price per unit
B5: v= | C5: 600 | D5: current volume
B7: vb= | C7: =C2/(C4-C3) -> 666.6666667 | D7: break-even point
A9: lower cost | C9: -0.1
B10: variable | C10: value | D10: description
B11: cf= | C11: =C2*(1+C9) -> 9000 | D11: fixed cost per month
B12: cv= | C12: =C3*(1+C9) -> 7.2 | D12: variable cost per unit
B13: p= | C13: 23 | D13: price per unit
B14: v= | C14: 600 | D14: current volume
B16: vb= | C16: =C11/(C13-C12) -> 569.6202532 | D16: break-even point | E16: =C16/$C$7 -> 0.8544303797 | F16: =1-E16 -> 0.1455696203
A18: higher cost | C18: 0.1
B19: variable | C19: value | D19: description
B20: cf= | C20: =C2*(1+C18) -> 11000 | D20: fixed cost per month
B21: cv= | C21: =C3*(1+C18) -> 8.8 | D21: variable cost per unit
B22: p= | C22: 23 | D22: price per unit
B23: v= | C23: 600 | D23: current volume
B25: vb= | C25: =C20/(C22-C21) -> 774.6478873 | D25: break-even point | E25: =C25/$C$7 -> 1.161971831 | F25: =E25-1 -> 0.161971831

Sheet break-even price increase
B1: variable | C1: value | D1: description | F1: percentage | G1: price | H1: break-even points
B2: cf= | C2: 10000 | D2: fixed cost per month | F2: 0 | G2: =$C$4*(1+F2) -> 23 | H2: =C2/(C4-C3) -> 666.6666667
B3: cv= | C3: 8 | D3: variable cost per unit | F3: 0.1 | G3: =$C$4*(1+F3) -> 25.3 | H3: =breakEvenPoint($C$2,$C$3,G3) -> 578.0346821
B4: p= | C4: 23 | D4: price per unit | F4: 0.2 | G4: 27.6 | H4: =breakEvenPoint($C$2,$C$3,G4) -> 510.2040816
B5: v= | C5: 600 | D5: current volume | F5: 0.3 | G5: 29.9 | H5: 456.6210046
F6: 0.4 | G6: 32.2 | H6: 413.2231405
B7: vb= | C7: =C2/(C4-C3) -> 666.6666667 | D7: break-even point | F7: 0.5 | G7: 34.5 | H7: 377.3584906
F8: 0.6 | G8: 36.8 | H8: 347.2222222
F9: 0.7 | G9: 39.1 | H9: 321.5434084
F10: 0.8 | G10: 41.4 | H10: 299.4011976
F11: 0.9 | G11: 43.7 | H11: 280.1120448
F12: 1 | G12: 46 | H12: 263.1578947

Sheet Profit max
A2: Motor-cycle
B3: var | C3: value | D3: description | F3: Ojbective
B4: c= | C4: 5 | D4: cost per item | F4: profit/item | G4: profit
B5: p= | C5: 20 | D5: price per item | F5: =C5-C4 -> 15 | G5: =F5*G9 -> 375
B6: a= | C6: 4 | D6: material required per item
B7: b= | C7: 100 | D7: material limit | F7: Constraint-material
F8: required | G8: volume | H8: used | I8: limit
B9: v= | C9: =C7/C6 -> 25 | D9: items | F9: =C6 -> 4 | G9: 25 | H9: =F9*G9 -> 100 | I9: =C7 -> 100
